[Event "Early-Titled-Tuesday-Blitz-September-12-2023"]
[Site "Chess.com"]
[Date "2023.09.12"]
[Round "4"]
[White "Bilan_Danila"]
[Black "BillieKimbah"]
[Result "0-1"]
[WhiteElo "2594"]
[BlackElo "3018"]
[TimeControl "180+1"]
[EndTime "8:36:51 PDT"]
[Termination "BillieKimbah won by resignation"]

1. d4 {[%clk 0:02:59.7]} 1... d5 {[%clk 0:02:59.2]} 2. Nf3 {[%clk 0:02:59.9]}
2... Nf6 {[%clk 0:02:59.1]} 3. c4 {[%clk 0:03:00.1]} 3... e6 {[%clk 0:02:58.7]}
4. Nc3 {[%clk 0:03:00]} 4... h6 {[%clk 0:02:58.8]} 5. cxd5 {[%clk 0:02:58.6]}
5... exd5 {[%clk 0:02:59.7]} 6. Bf4 {[%clk 0:02:58.8]} 6... Bd6 {[%clk
0:02:59.9]} 7. Bg3 {[%clk 0:02:58.8]} 7... O-O {[%clk 0:02:59.2]} 8. e3 {[%clk
0:02:58.4]} 8... Re8 {[%clk 0:02:59.5]} 9. Bd3 {[%clk 0:02:51.9]} 9... c6 {[%clk
0:02:59.8]} 10. Qc2 {[%clk 0:02:51.3]} 10... Qe7 {[%clk 0:02:56]} 11. Bf5 {[%clk
0:02:19.2]} 11... Na6 {[%clk 0:02:53.5]} 12. a3 {[%clk 0:02:17.3]} 12... Nc7
{[%clk 0:02:52]} 13. O-O {[%clk 0:02:00.1]} 13... Bxg3 {[%clk 0:02:44.2]} 14.
hxg3 {[%clk 0:01:59.6]} 14... Bxf5 {[%clk 0:02:39.7]} 15. Qxf5 {[%clk
0:01:58.7]} 15... g6 {[%clk 0:02:39.9]} 16. Qc2 {[%clk 0:01:46.1]} 16... Kg7
{[%clk 0:02:34.8]} 17. b4 {[%clk 0:01:43.9]} 17... h5 {[%clk 0:02:33.7]} 18. a4
{[%clk 0:01:39.2]} 18... a6 {[%clk 0:02:25.7]} 19. Rab1 {[%clk 0:01:25.5]} 19...
Rec8 {[%clk 0:02:19.5]} 20. a5 {[%clk 0:00:54.4]} 20... Nce8 {[%clk 0:02:14.1]}
21. Na4 {[%clk 0:00:52.3]} 21... Rd8 {[%clk 0:02:12.7]} 22. Nc5 {[%clk
0:00:47.7]} 22... Nd6 {[%clk 0:02:12.4]} 23. Rbe1 {[%clk 0:00:35.9]} 23... Rh8
{[%clk 0:02:11.8]} 24. Ne5 {[%clk 0:00:29.1]} 24... Nfe4 {[%clk 0:02:02.3]} 25.
Kh2 {[%clk 0:00:16.5]} 25... Qg5 {[%clk 0:01:41.1]} 26. Qe2 {[%clk 0:00:12]}
26... Rae8 {[%clk 0:01:30.5]} 27. Rd1 {[%clk 0:00:07.6]} 27... Nc3 {[%clk
0:01:25.1]} 28. Qf3 {[%clk 0:00:07.4]} 28... Nxd1 {[%clk 0:01:24.6]} 29. Qxf7+
{[%clk 0:00:07.2]} 29... Nxf7 {[%clk 0:01:24.2]} 0-1

[Event "Early-Titled-Tuesday-Blitz-September-12-2023"]
[Site "Chess.com"]
[Date "2023.09.12"]
[Round "4"]
[White "OchsenfroschGambit"]
[Black "KVAIDAN"]
[Result "1-0"]
[WhiteElo "2205"]
[BlackElo "2287"]
[TimeControl "180+1"]
[EndTime "8:36:53 PDT"]
[Termination "OchsenfroschGambit won by checkmate"]

1. d4 {[%clk 0:03:00.9]} 1... e6 {[%clk 0:02:54.2]} 2. c4 {[%clk 0:03:01]} 2...
f5 {[%clk 0:02:53.8]} 3. Nc3 {[%clk 0:03:00.9]} 3... Nf6 {[%clk 0:02:54.4]} 4.
g3 {[%clk 0:02:57.2]} 4... Be7 {[%clk 0:02:53]} 5. Bg2 {[%clk 0:02:57.7]} 5...
d6 {[%clk 0:02:53.3]} 6. Nf3 {[%clk 0:02:54.4]} 6... O-O {[%clk 0:02:53.8]} 7.
O-O {[%clk 0:02:54.1]} 7... a5 {[%clk 0:02:53.9]} 8. Re1 {[%clk 0:02:49.5]} 8...
Ne4 {[%clk 0:02:54]} 9. Qc2 {[%clk 0:02:36.7]} 9... Nxc3 {[%clk 0:02:49.3]} 10.
bxc3 {[%clk 0:02:31.6]} 10... Qe8 {[%clk 0:02:42]} 11. e4 {[%clk 0:02:30.3]}
11... Qg6 {[%clk 0:02:41.1]} 12. exf5 {[%clk 0:02:13.8]} 12... Rxf5 {[%clk
0:02:41]} 13. Ba3 {[%clk 0:01:31.6]} 13... Nc6 {[%clk 0:02:39]} 14. Rad1 {[%clk
0:01:30.8]} 14... Bd7 {[%clk 0:02:36.7]} 15. d5 {[%clk 0:01:23.3]} 15... exd5
{[%clk 0:02:27.9]} 16. cxd5 {[%clk 0:01:22.7]} 16... Ne5 {[%clk 0:02:24.6]} 17.
Nxe5 {[%clk 0:01:22.7]} 17... dxe5 {[%clk 0:02:05.6]} 18. Bxe7 {[%clk
0:01:21.5]} 18... Qf7 {[%clk 0:02:05.5]} 19. Ba3 {[%clk 0:01:19.5]} 19... b5
{[%clk 0:02:05.3]} 20. d6 {[%clk 0:01:16.5]} 20... c6 {[%clk 0:02:05.6]} 21. Bc5
{[%clk 0:01:13.8]} 21... Rf8 {[%clk 0:02:03.5]} 22. Be4 {[%clk 0:01:08.9]} 22...
Rh5 {[%clk 0:02:01.3]} 23. Qe2 {[%clk 0:00:55.8]} 23... g6 {[%clk 0:01:53.9]}
24. Be3 {[%clk 0:00:52.3]} 24... g5 {[%clk 0:01:35.2]} 25. Bg2 {[%clk
0:00:38.6]} 25... g4 {[%clk 0:01:26.8]} 26. c4 {[%clk 0:00:37.7]} 26... bxc4
{[%clk 0:01:24.5]} 27. Rc1 {[%clk 0:00:36.6]} 27... Qe6 {[%clk 0:01:13.6]} 28.
Qxc4 {[%clk 0:00:36.1]} 28... Rhf5 {[%clk 0:01:05]} 29. Bxc6 {[%clk 0:00:32.9]}
29... Bxc6 {[%clk 0:01:00]} 30. Qxe6+ {[%clk 0:00:32.2]} 30... Kg7 {[%clk
0:00:59.5]} 31. Rxc6 {[%clk 0:00:31.5]} 31... R5f6 {[%clk 0:00:58.7]} 32. Rc7+
{[%clk 0:00:30.8]} 32... Kg6 {[%clk 0:00:58.3]} 33. Qxg4# {[%clk 0:00:30.1]} 1-0

[Event "Early-Titled-Tuesday-Blitz-September-12-2023"]
[Site "Chess.com"]
[Date "2023.09.12"]
[Round "4"]
[White "temus_galaktionov"]
[Black "Pingah9"]
[Result "1-0"]
[WhiteElo "2815"]
[BlackElo "2562"]
[TimeControl "180+1"]
[EndTime "8:36:56 PDT"]
[Termination "temus_galaktionov won by resignation"]

1. d4 {[%clk 0:03:00]} 1... g6 {[%clk 0:02:55.7]} 2. Nf3 {[%clk 0:03:00.9]} 2...
Bg7 {[%clk 0:02:54.5]} 3. c4 {[%clk 0:03:01.8]} 3... f5 {[%clk 0:02:54]} 4. Nc3
{[%clk 0:03:00.7]} 4... Nf6 {[%clk 0:02:53.9]} 5. g3 {[%clk 0:03:00.9]} 5... O-O
{[%clk 0:02:53.6]} 6. Bg2 {[%clk 0:03:01.1]} 6... d6 {[%clk 0:02:54.2]} 7. O-O
{[%clk 0:03:01.3]} 7... Nc6 {[%clk 0:02:54.3]} 8. d5 {[%clk 0:03:01.1]} 8... Ne5
{[%clk 0:02:54.2]} 9. Nxe5 {[%clk 0:03:00.9]} 9... dxe5 {[%clk 0:02:55.1]} 10.
e4 {[%clk 0:03:00.2]} 10... f4 {[%clk 0:02:55.6]} 11. c5 {[%clk 0:02:45.1]}
11... g5 {[%clk 0:02:54.5]} 12. b4 {[%clk 0:02:44.1]} 12... Kh8 {[%clk
0:02:47.9]} 13. Bb2 {[%clk 0:02:42.3]} 13... a6 {[%clk 0:02:43.5]} 14. Nb1
{[%clk 0:02:41]} 14... Qe8 {[%clk 0:02:42.5]} 15. Bxe5 {[%clk 0:02:35.7]} 15...
Qg6 {[%clk 0:02:35.3]} 16. Nd2 {[%clk 0:02:33.6]} 16... Ng4 {[%clk 0:02:18.8]}
17. Bxg7+ {[%clk 0:02:32.6]} 17... Qxg7 {[%clk 0:02:19.7]} 18. Nf3 {[%clk
0:02:29.5]} 18... Ne5 {[%clk 0:02:11]} 19. Nxe5 {[%clk 0:02:27.9]} 19... Qxe5
{[%clk 0:02:11.9]} 20. Rc1 {[%clk 0:02:23.9]} 20... g4 {[%clk 0:02:08.7]} 21.
Re1 {[%clk 0:02:22.4]} 21... h5 {[%clk 0:02:05.2]} 22. Qd2 {[%clk 0:02:22.5]}
22... f3 {[%clk 0:01:29.2]} 23. Bf1 {[%clk 0:02:22.5]} 23... Kg7 {[%clk
0:01:29.6]} 24. Qc3 {[%clk 0:02:21.7]} 24... Kf6 {[%clk 0:01:29.8]} 25. h4
{[%clk 0:02:17.1]} 25... gxh3 {[%clk 0:01:19.9]} 26. Kh2 {[%clk 0:02:16.5]}
26... h4 {[%clk 0:01:17.6]} 27. Qxe5+ {[%clk 0:02:14]} 27... Kxe5 {[%clk
0:01:17.4]} 28. gxh4 {[%clk 0:02:13.5]} 28... Rf4 {[%clk 0:01:16.7]} 29. h5
{[%clk 0:02:04.5]} 29... Bg4 {[%clk 0:01:11.3]} 30. c6 {[%clk 0:02:01.9]} 30...
b6 {[%clk 0:01:07.1]} 31. Bd3 {[%clk 0:01:58.5]} 31... a5 {[%clk 0:01:01.4]} 32.
b5 {[%clk 0:01:57.6]} 32... Rh8 {[%clk 0:01:00.4]} 33. Rg1 {[%clk 0:01:57.4]}
33... Rxh5 {[%clk 0:00:57.5]} 34. Rg3 {[%clk 0:01:57.1]} 34... Kd4 {[%clk
0:00:55.9]} 35. Bb1 {[%clk 0:01:56.8]} 35... Ke5 {[%clk 0:00:49.5]} 36. Rcg1
{[%clk 0:01:56.7]} 36... Rh4 {[%clk 0:00:49.4]} 37. Rd1 {[%clk 0:01:52.7]} 37...
Bh5 {[%clk 0:00:42.7]} 38. Rdg1 {[%clk 0:01:52.6]} 38... Rhg4 {[%clk 0:00:38.4]}
39. Rxh3 {[%clk 0:01:50.3]} 39... Rxg1 {[%clk 0:00:30.5]} 40. Rxh5+ {[%clk
0:01:48.2]} 40... Kd4 {[%clk 0:00:29.8]} 41. Kxg1 {[%clk 0:01:48]} 41... Kc3
{[%clk 0:00:29.8]} 42. Re5 {[%clk 0:01:43.7]} 42... Kb2 {[%clk 0:00:29.4]} 43.
Rxe7 {[%clk 0:01:36.7]} 1-0

[Event "Early-Titled-Tuesday-Blitz-September-12-2023"]
[Site "Chess.com"]
[Date "2023.09.12"]
[Round "4"]
[White "thedjoker98"]
[Black "MarijaKuznecova"]
[Result "0-1"]
[WhiteElo "2622"]
[BlackElo "2412"]
[TimeControl "180+1"]
[EndTime "8:36:56 PDT"]
[Termination "MarijaKuznecova won by resignation"]

1. d4 {[%clk 0:03:00.9]} 1... Nf6 {[%clk 0:02:58.5]} 2. c4 {[%clk 0:03:00.7]}
2... c5 {[%clk 0:02:59]} 3. d5 {[%clk 0:03:00.3]} 3... b5 {[%clk 0:02:59.2]} 4.
cxb5 {[%clk 0:03:01.1]} 4... a6 {[%clk 0:02:59]} 5. bxa6 {[%clk 0:03:02]} 5...
g6 {[%clk 0:02:58.8]} 6. Nc3 {[%clk 0:03:02.9]} 6... Bg7 {[%clk 0:02:59]} 7. a7
{[%clk 0:03:03.5]} 7... Rxa7 {[%clk 0:02:58.4]} 8. Nf3 {[%clk 0:03:03.9]} 8...
O-O {[%clk 0:02:58.3]} 9. e4 {[%clk 0:03:04.3]} 9... d6 {[%clk 0:02:57]} 10. Be2
{[%clk 0:03:04]} 10... Qa5 {[%clk 0:02:57.4]} 11. O-O {[%clk 0:03:03.8]} 11...
Ba6 {[%clk 0:02:57.5]} 12. Bd2 {[%clk 0:03:02.5]} 12... Bxe2 {[%clk 0:02:47.5]}
13. Qxe2 {[%clk 0:03:03.4]} 13... Qa6 {[%clk 0:02:47.5]} 14. Qxa6 {[%clk
0:02:55]} 14... Nxa6 {[%clk 0:02:48.4]} 15. a3 {[%clk 0:02:55.8]} 15... Rb8
{[%clk 0:02:45.3]} 16. Rab1 {[%clk 0:02:56]} 16... c4 {[%clk 0:02:37]} 17. e5
{[%clk 0:02:52.7]} 17... Nd7 {[%clk 0:02:16.9]} 18. exd6 {[%clk 0:02:50.9]}
18... exd6 {[%clk 0:02:17.8]} 19. Bf4 {[%clk 0:02:51.2]} 19... Ne5 {[%clk
0:02:13.4]} 20. Nxe5 {[%clk 0:02:45.7]} 20... dxe5 {[%clk 0:02:14.3]} 21. Be3
{[%clk 0:02:41.2]} 21... Rab7 {[%clk 0:02:13.9]} 22. Na4 {[%clk 0:02:40.7]}
22... e4 {[%clk 0:02:10.6]} 23. Rfc1 {[%clk 0:02:33.8]} 23... Nc7 {[%clk
0:01:50.7]} 24. Rxc4 {[%clk 0:02:23.8]} 24... Nxd5 {[%clk 0:01:50]} 25. Rxe4
{[%clk 0:02:24.1]} 25... Ra8 {[%clk 0:01:33.3]} 26. Nc5 {[%clk 0:02:20.4]} 26...
Rxb2 {[%clk 0:01:31.1]} 27. Rxb2 {[%clk 0:02:14.7]} 27... Bxb2 {[%clk 0:01:32]}
28. a4 {[%clk 0:02:14.1]} 28... Ba3 {[%clk 0:00:38.8]} 29. Nd7 {[%clk
0:01:48.5]} 29... Nc3 {[%clk 0:00:25.8]} 30. Nb6 {[%clk 0:01:47.1]} 30... Rd8
{[%clk 0:00:22.7]} 31. Rd4 {[%clk 0:01:39.9]} 31... Ne2+ {[%clk 0:00:22.4]} 32.
Kf1 {[%clk 0:01:40]} 32... Nxd4 {[%clk 0:00:22.9]} 33. a5 {[%clk 0:01:40.6]}
33... Nb5 {[%clk 0:00:17]} 34. a6 {[%clk 0:01:40.6]} 34... Bb4 {[%clk
0:00:16.2]} 35. g4 {[%clk 0:01:37.1]} 35... Ba5 {[%clk 0:00:16.5]} 36. Nc4
{[%clk 0:01:37.1]} 36... Bc7 {[%clk 0:00:16.5]} 37. h4 {[%clk 0:01:34.1]} 37...
Ra8 {[%clk 0:00:16.3]} 38. h5 {[%clk 0:01:34.7]} 38... Rxa6 {[%clk 0:00:15.5]}
39. hxg6 {[%clk 0:01:35.6]} 39... hxg6 {[%clk 0:00:15.8]} 40. f3 {[%clk
0:01:36.1]} 40... Ra2 {[%clk 0:00:15.5]} 41. Nd2 {[%clk 0:01:36.1]} 41... Ba5
{[%clk 0:00:14.8]} 42. Ke2 {[%clk 0:01:34.7]} 42... Bxd2 {[%clk 0:00:14.7]} 43.
Bxd2 {[%clk 0:01:35.6]} 43... Nd4+ {[%clk 0:00:15.1]} 0-1

[Event "Early-Titled-Tuesday-Blitz-September-12-2023"]
[Site "Chess.com"]
[Date "2023.09.12"]
[Round "4"]
[White "Fh2411"]
[Black "BlueWizzard"]
[Result "0-1"]
[WhiteElo "2590"]
[BlackElo "2969"]
[TimeControl "180+1"]
[EndTime "8:36:58 PDT"]
[Termination "BlueWizzard won on time"]

1. d4 {[%clk 0:02:46.3]} 1... g6 {[%clk 0:02:59.9]} 2. c4 {[%clk 0:02:44.4]}
2... d5 {[%clk 0:02:59.2]} 3. cxd5 {[%clk 0:02:41.7]} 3... Nf6 {[%clk
0:02:59.8]} 4. h4 {[%clk 0:02:39]} 4... Bg7 {[%clk 0:02:57.4]} 5. Nc3 {[%clk
0:02:36.5]} 5... Nxd5 {[%clk 0:02:56.9]} 6. h5 {[%clk 0:02:35.4]} 6... c5 {[%clk
0:02:57.1]} 7. e3 {[%clk 0:02:17.6]} 7... Nc6 {[%clk 0:02:53.5]} 8. h6 {[%clk
0:01:57]} 8... Bf6 {[%clk 0:02:52.6]} 9. Ne4 {[%clk 0:01:57.4]} 9... cxd4 {[%clk
0:02:51.3]} 10. Nxf6+ {[%clk 0:01:52.1]} 10... exf6 {[%clk 0:02:47.5]} 11. exd4
{[%clk 0:01:51.6]} 11... O-O {[%clk 0:02:46.9]} 12. Nf3 {[%clk 0:01:46.4]} 12...
Qa5+ {[%clk 0:02:39]} 13. Bd2 {[%clk 0:01:41.8]} 13... Qb6 {[%clk 0:02:38.5]}
14. Bc4 {[%clk 0:01:22.9]} 14... Re8+ {[%clk 0:02:37.9]} 15. Kf1 {[%clk
0:01:21.9]} 15... Be6 {[%clk 0:02:37.7]} 16. b3 {[%clk 0:00:51]} 16... Rad8
{[%clk 0:02:22.6]} 17. Rh4 {[%clk 0:00:42.9]} 17... Nc7 {[%clk 0:02:08.2]} 18.
Be3 {[%clk 0:00:38.4]} 18... Nd5 {[%clk 0:02:04.7]} 19. Qc1 {[%clk 0:00:23.5]}
19... Nce7 {[%clk 0:02:04.5]} 20. Kg1 {[%clk 0:00:16.9]} 20... Nf5 {[%clk
0:02:03]} 21. Rh2 {[%clk 0:00:14.9]} 21... Ndxe3 {[%clk 0:02:00.7]} 22. fxe3
{[%clk 0:00:15.8]} 22... Bxc4 {[%clk 0:02:00.4]} 23. bxc4 {[%clk 0:00:12]} 23...
Nxe3 {[%clk 0:02:00.4]} 24. c5 {[%clk 0:00:12.5]} 24... Qe6 {[%clk 0:01:56.7]}
25. Qb2 {[%clk 0:00:08.2]} 25... Qd5 {[%clk 0:01:52]} 26. Re1 {[%clk 0:00:06]}
26... Ng4 {[%clk 0:01:42]} 27. Rh4 {[%clk 0:00:04.8]} 27... f5 {[%clk 0:01:39]}
28. Rd1 {[%clk 0:00:03.8]} 28... Re4 {[%clk 0:01:31.2]} 29. Qd2 {[%clk
0:00:03.9]} 29... Rde8 {[%clk 0:01:30.4]} 30. Rh3 {[%clk 0:00:01.3]} 30... Re2
{[%clk 0:01:30.1]} 31. Qg5 {[%clk 0:00:01.3]} 31... f6 {[%clk 0:01:27.9]} 32.
Qf4 {[%clk 0:00:01.3]} 32... Ne3 {[%clk 0:01:24.1]} 0-1

[Event "Early-Titled-Tuesday-Blitz-September-12-2023"]
[Site "Chess.com"]
[Date "2023.09.12"]
[Round "4"]
[White "CristianS27"]
[Black "pirulillo"]
[Result "1-0"]
[WhiteElo "2513"]
[BlackElo "2301"]
[TimeControl "180+1"]
[EndTime "8:37:08 PDT"]
[Termination "CristianS27 won by resignation"]

1. e4 {[%clk 0:03:00.9]} 1... c5 {[%clk 0:02:48.2]} 2. Nf3 {[%clk 0:03:00.9]}
2... e6 {[%clk 0:02:48.1]} 3. d4 {[%clk 0:03:01.5]} 3... cxd4 {[%clk 0:02:48.9]}
4. Nxd4 {[%clk 0:03:02.2]} 4... Nf6 {[%clk 0:02:49.5]} 5. Nc3 {[%clk 0:03:02]}
5... Nc6 {[%clk 0:02:49.6]} 6. Ndb5 {[%clk 0:03:01.8]} 6... d6 {[%clk
0:02:49.5]} 7. Bf4 {[%clk 0:03:01.1]} 7... e5 {[%clk 0:02:49.8]} 8. Bg5 {[%clk
0:03:01.8]} 8... a6 {[%clk 0:02:49.9]} 9. Na3 {[%clk 0:03:02.5]} 9... b5 {[%clk
0:02:50.2]} 10. Bxf6 {[%clk 0:03:03.2]} 10... gxf6 {[%clk 0:02:51]} 11. Nd5
{[%clk 0:03:04.1]} 11... Bg7 {[%clk 0:02:51.4]} 12. g3 {[%clk 0:03:04.6]} 12...
Ne7 {[%clk 0:02:51.7]} 13. Nxe7 {[%clk 0:03:03]} 13... Qxe7 {[%clk 0:02:52.6]}
14. Bg2 {[%clk 0:03:03.8]} 14... O-O {[%clk 0:02:52.6]} 15. O-O {[%clk
0:03:03.8]} 15... Bb7 {[%clk 0:02:43]} 16. c3 {[%clk 0:02:58.8]} 16... f5 {[%clk
0:02:39.7]} 17. exf5 {[%clk 0:02:58.8]} 17... Bxg2 {[%clk 0:02:39.6]} 18. Kxg2
{[%clk 0:02:59.7]} 18... Qb7+ {[%clk 0:02:34.6]} 19. Qf3 {[%clk 0:02:52.9]}
19... e4 {[%clk 0:02:31]} 20. Qg4 {[%clk 0:02:52.8]} 20... Kh8 {[%clk 0:02:30]}
21. Rfe1 {[%clk 0:02:46.5]} 21... d5 {[%clk 0:02:29.5]} 22. Nc2 {[%clk
0:02:42.8]} 22... Be5 {[%clk 0:02:27.2]} 23. Rad1 {[%clk 0:02:40.1]} 23... f6
{[%clk 0:02:23.2]} 24. Ne3 {[%clk 0:02:34.6]} 24... Rad8 {[%clk 0:02:21.7]} 25.
Qh4 {[%clk 0:02:25.4]} 25... b4 {[%clk 0:02:16.3]} 26. Ng4 {[%clk 0:02:10.4]}
26... bxc3 {[%clk 0:02:12.5]} 27. Nxe5 {[%clk 0:02:10.6]} 27... fxe5 {[%clk
0:02:13.4]} 28. bxc3 {[%clk 0:02:09.3]} 28... Rd6 {[%clk 0:02:07.8]} 29. Rxe4
{[%clk 0:02:04.9]} 29... Rxf5 {[%clk 0:02:06]} 30. Rb4 {[%clk 0:01:54.4]} 30...
Qf7 {[%clk 0:02:02.9]} 31. g4 {[%clk 0:01:35.6]} 31... Rg6 {[%clk 0:01:50.2]}
32. Rdb1 {[%clk 0:01:32.6]} 32... Rfg5 {[%clk 0:01:31.4]} 33. Rb8+ {[%clk
0:01:24.2]} 33... Kg7 {[%clk 0:01:31.1]} 34. h3 {[%clk 0:01:10]} 34... h5 {[%clk
0:00:31.1]} 35. R1b7 {[%clk 0:01:05.5]} 35... Rxg4+ {[%clk 0:00:30.6]} 36. hxg4
{[%clk 0:01:02]} 36... Rxg4+ {[%clk 0:00:31.5]} 37. Qxg4+ {[%clk 0:01:01]} 37...
hxg4 {[%clk 0:00:31]} 38. Kg3 {[%clk 0:00:59.1]} 1-0

[Event "Early-Titled-Tuesday-Blitz-September-12-2023"]
[Site "Chess.com"]
[Date "2023.09.12"]
[Round "4"]
[White "Al_Shima"]
[Black "Viacheslav92"]
[Result "1/2-1/2"]
[WhiteElo "2348"]
[BlackElo "2515"]
[TimeControl "180+1"]
[EndTime "8:37:09 PDT"]
[Termination "Game drawn by agreement"]

1. b3 {[%clk 0:03:00.9]} 1... Nf6 {[%clk 0:02:55.5]} 2. Bb2 {[%clk 0:03:00.8]}
2... g6 {[%clk 0:02:56.2]} 3. Bxf6 {[%clk 0:03:00]} 3... exf6 {[%clk 0:02:57.1]}
4. c4 {[%clk 0:02:59.8]} 4... Bg7 {[%clk 0:02:54.8]} 5. Nc3 {[%clk 0:02:59.9]}
5... O-O {[%clk 0:02:55.4]} 6. g3 {[%clk 0:03:00.4]} 6... c6 {[%clk 0:02:54.2]}
7. Bg2 {[%clk 0:03:00.8]} 7... d6 {[%clk 0:02:54.5]} 8. e3 {[%clk 0:03:00.9]}
8... Nd7 {[%clk 0:02:55.1]} 9. d4 {[%clk 0:03:00.7]} 9... f5 {[%clk 0:02:55.7]}
10. Nge2 {[%clk 0:02:59.8]} 10... Nf6 {[%clk 0:02:56.3]} 11. O-O {[%clk
0:02:58.8]} 11... h5 {[%clk 0:02:55.2]} 12. h4 {[%clk 0:02:58.2]} 12... Re8
{[%clk 0:02:54.8]} 13. Qd3 {[%clk 0:02:57.6]} 13... Qe7 {[%clk 0:02:52.7]} 14.
Rac1 {[%clk 0:02:57.2]} 14... Ne4 {[%clk 0:02:52.1]} 15. Nf4 {[%clk 0:02:56.3]}
15... Bh6 {[%clk 0:02:47.9]} 16. Rfe1 {[%clk 0:02:50]} 16... Bd7 {[%clk
0:02:47.1]} 17. Bf3 {[%clk 0:02:49.6]} 17... Rad8 {[%clk 0:02:39.1]} 18. Kg2
{[%clk 0:02:49.5]} 18... Kg7 {[%clk 0:02:37.9]} 19. Re2 {[%clk 0:02:48.1]} 19...
Nxc3 {[%clk 0:02:31.4]} 20. Qxc3 {[%clk 0:02:46.1]} 20... Bxf4 {[%clk
0:02:29.6]} 21. exf4 {[%clk 0:02:44.9]} 21... Qf6 {[%clk 0:02:28.9]} 22. Rce1
{[%clk 0:02:42.9]} 22... Rxe2 {[%clk 0:02:24.3]} 23. Rxe2 {[%clk 0:02:43.8]}
23... Re8 {[%clk 0:02:24.5]} 24. Re3 {[%clk 0:02:38.2]} 24... b6 {[%clk
0:02:18.7]} 25. Qe1 {[%clk 0:02:34.8]} 25... Rxe3 {[%clk 0:02:06.4]} 26. fxe3
{[%clk 0:02:35.7]} 26... c5 {[%clk 0:02:03.6]} 27. Qd2 {[%clk 0:02:33.2]} 27...
Qe7 {[%clk 0:01:59.8]} 28. b4 {[%clk 0:02:30.4]} 28... Qe8 {[%clk 0:01:56.1]}
29. bxc5 {[%clk 0:02:22.2]} 29... dxc5 {[%clk 0:01:54.4]} 30. dxc5 {[%clk
0:01:42.9]} 30... bxc5 {[%clk 0:01:55.3]} 31. Qd6 {[%clk 0:01:42.5]} 31... Be6
{[%clk 0:01:48.4]} 32. Qxc5 {[%clk 0:01:40.8]} 32... Qa4 {[%clk 0:01:47.6]} 33.
Qd4+ {[%clk 0:01:05.4]} 33... Kg8 {[%clk 0:01:42.6]} 34. Qb2 {[%clk 0:00:59.2]}
34... Bxc4 {[%clk 0:01:33.2]} 35. a3 {[%clk 0:00:59.2]} 35... Qb5 {[%clk
0:01:03.3]} 36. Qxb5 {[%clk 0:00:57.3]} 36... Bxb5 {[%clk 0:01:04.2]} 37. Kf2
{[%clk 0:00:57.4]} 37... Kf8 {[%clk 0:01:04.1]} 38. Ke1 {[%clk 0:00:57.8]} 38...
Ke7 {[%clk 0:01:04.5]} 39. Kd2 {[%clk 0:00:58.7]} 39... Kd6 {[%clk 0:01:04.5]}
40. Kc3 {[%clk 0:00:59.2]} 40... Kc5 {[%clk 0:01:01.2]} 41. Bd1 {[%clk
0:00:58.1]} 41... Bc4 {[%clk 0:00:58.3]} 42. Ba4 {[%clk 0:00:57.9]} 42... Be6
{[%clk 0:00:57.3]} 43. Be8 {[%clk 0:00:56.4]} 43... Ba2 {[%clk 0:00:54]} 44. Bd7
{[%clk 0:00:53.8]} 44... Bd5 {[%clk 0:00:51.4]} 45. Be8 {[%clk 0:00:51.1]}
1/2-1/2

[Event "Early-Titled-Tuesday-Blitz-September-12-2023"]
[Site "Chess.com"]
[Date "2023.09.12"]
[Round "4"]
[White "Ncatt"]
[Black "Akewjon"]
[Result "1-0"]
[WhiteElo "2549"]
[BlackElo "2709"]
[TimeControl "180+1"]
[EndTime "8:37:15 PDT"]
[Termination "Ncatt won by checkmate"]

1. e4 {[%clk 0:02:52.9]} 1... e5 {[%clk 0:03:00]} 2. Nf3 {[%clk 0:02:51.9]} 2...
Nc6 {[%clk 0:03:00.7]} 3. Bc4 {[%clk 0:02:52.2]} 3... Nf6 {[%clk 0:03:00.6]} 4.
O-O {[%clk 0:02:50.9]} 4... Bc5 {[%clk 0:03:00.4]} 5. d4 {[%clk 0:02:50.4]} 5...
Bxd4 {[%clk 0:02:56.4]} 6. Nxd4 {[%clk 0:02:47.3]} 6... Nxd4 {[%clk 0:02:57.3]}
7. f4 {[%clk 0:02:46.1]} 7... d6 {[%clk 0:02:57.9]} 8. fxe5 {[%clk 0:02:42.1]}
8... dxe5 {[%clk 0:02:58.8]} 9. Bg5 {[%clk 0:02:40.2]} 9... Be6 {[%clk
0:02:56.8]} 10. Na3 {[%clk 0:02:37.1]} 10... Qe7 {[%clk 0:02:34.5]} 11. c3
{[%clk 0:02:35.2]} 11... Nc6 {[%clk 0:02:21.7]} 12. Qf3 {[%clk 0:02:31.3]} 12...
Rg8 {[%clk 0:02:16.8]} 13. Rad1 {[%clk 0:02:22.8]} 13... Bxc4 {[%clk 0:02:14.4]}
14. Nxc4 {[%clk 0:02:21.6]} 14... h6 {[%clk 0:02:14.5]} 15. Bxf6 {[%clk
0:02:16.7]} 15... gxf6 {[%clk 0:02:15.4]} 16. Ne3 {[%clk 0:02:10.3]} 16... Rg6
{[%clk 0:02:06]} 17. Nd5 {[%clk 0:02:01.6]} 17... Qc5+ {[%clk 0:02:05.2]} 18.
Kh1 {[%clk 0:02:00]} 18... O-O-O {[%clk 0:02:05.4]} 19. Nxf6 {[%clk 0:01:54.6]}
19... Rxd1 {[%clk 0:02:04.7]} 20. Rxd1 {[%clk 0:01:50.3]} 20... b6 {[%clk
0:02:04.8]} 21. Nd5 {[%clk 0:01:47.1]} 21... Qf8 {[%clk 0:01:44.6]} 22. Qf5+
{[%clk 0:01:38.6]} 22... Kb7 {[%clk 0:01:43.3]} 23. Qd7 {[%clk 0:01:33.2]} 23...
Qd6 {[%clk 0:01:32.4]} 24. Qxf7 {[%clk 0:01:28.2]} 24... Nd8 {[%clk 0:01:32.3]}
25. Qf5 {[%clk 0:01:24.1]} 25... Rg5 {[%clk 0:01:28.7]} 26. Qf3 {[%clk
0:01:20.6]} 26... Ne6 {[%clk 0:01:28.5]} 27. g3 {[%clk 0:01:08]} 27... Nc5
{[%clk 0:01:13.9]} 28. b4 {[%clk 0:01:05.7]} 28... Na4 {[%clk 0:01:11.8]} 29. c4
{[%clk 0:00:59.6]} 29... Rg7 {[%clk 0:01:02.5]} 30. c5 {[%clk 0:00:49.2]} 30...
bxc5 {[%clk 0:00:57.1]} 31. Nc3 {[%clk 0:00:48.3]} 31... Qa6 {[%clk 0:00:52]}
32. b5 {[%clk 0:00:46.3]} 32... Qa5 {[%clk 0:00:52.2]} 33. Qf6 {[%clk 0:00:40]}
33... Nxc3 {[%clk 0:00:50.5]} 34. Qc6+ {[%clk 0:00:31.4]} 34... Kc8 {[%clk
0:00:48.4]} 35. Qa8# {[%clk 0:00:30.9]} 1-0